bitfinex/quotes_SOLUSD_20251103
["timestamp","ask_amount","ask_price","bid_price","bid_amount"]
[1762162783537,0.7,175.39,175.32,8.71887217]
[1762162783738,0.7,175.39,175.34,2.81517415]
[1762162784050,11.66,175.38,175.35,2.81517415]
[1762162784547,11.66,175.38,175.36,2.81517415]
[1762162784745,11.66,175.38,175.37,2.81517415]
[1762162785329,11.66,175.38,175.37,8.51740372]
[1762162785550,0.7,175.42,175.37,8.51740372]
[1762162785739,11.66,175.39,175.37,8.51740372]
[1762162786652,11.66,175.39,175.37,8.71740372]
[1762162786952,11.66,175.4,175.38,3.01517415]
[1762162787334,11.66,175.4,175.38,5.7016083]
[1762162787542,11.66,175.4,175.38,8.51678245]
[1762162787743,5.69932006,175.46,175.38,8.51678245]
[1762162787950,11.66,175.45,175.4,2.81517415]
[1762162788148,12.36,175.45,175.4,2.81517415]
[1762162788348,0.7,175.44,175.4,2.81517415]
[1762162788665,0.7,175.44,175.33,0.57035304]
[1762162788834,0.7,175.44,175.32,3.01517415]
[1762162789663,31.61097759,175.43,175.33,5.70353048]
[1762162790162,0.7,175.42,175.33,5.70353048]
[1762162790353,0.7,175.42,175.32,26.29583719]
[1762162790535,0.7,175.42,175.32,5.70383719]
[1762162791762,19.95325237,175.41,175.31,5.70418116]
[1762162792143,0.7,175.4,175.31,5.70418116]
[1762162792461,0.7,175.4,175.3,26.29644985]
[1762162793136,0.7,175.4,175.3,29.111624]
[1762162793564,0.7,175.4,175.3,20.592]
[1762162793759,0.7,175.4,175.28,5.70509241]
[1762162793760,20.592,175.37,175.28,5.70509241]
[1762162794058,17.36255474,175.36,175.28,5.70509241]
[1762162794260,18.06255474,175.36,175.29,2.81517415]
[1762162794564,0.7,175.35,175.29,2.81517415]
[1762162795063,4.2246119,175.34,175.29,2.81517415]
[1762162795263,4.2246119,175.33,175.27,20.792]
[1762162795452,4.2246119,175.32,175.3,2.81517415]
[1762162795652,11.66,175.31,175.3,2.81517415]
[1762162795846,0.7,175.38,175.31,5.90418116]
[1762162796160,15.88599836,175.37,175.34,2.81517415]
[1762162796343,4.22599836,175.36,175.34,2.81517415]
[1762162796543,4.22599836,175.36,175.35,2.81517415]
[1762162797656,4.22599836,175.36,175.35,8.5180541]
[1762162797855,4.22599836,175.36,175.35,2.81517415]
[1762162798360,11.66,175.37,175.34,26.29518291]
[1762162798552,11.66,175.37,175.35,2.81517415]
[1762162799367,0.71,175.39,175.35,2.81517415]
[1762162799666,4.22677191,175.38,175.34,26.29518291]
[1762162799838,15.88677191,175.37,175.35,2.81517415]
[1762162800045,11.66,175.37,175.35,2.81517415]
[1762162800272,4.22726,175.36,175.35,2.81517415]
[1762162800873,11.66,175.36,175.35,8.5180541]
[1762162801044,11.66,175.36,175.35,2.81517415]
[1762162801249,12.37,175.36,175.34,23.40717415]
[1762162801446,11.66,175.36,175.34,20.592]
[1762162801647,12.37,175.36,175.34,20.592]
[1762162801950,4.22912284,175.35,175.33,29.11063552]
[1762162802365,0.71,175.34,175.31,8.51904845]
[1762162802758,4.94119111,175.34,175.31,8.51904845]
[1762162802964,0.71,175.34,175.31,8.51904845]
[1762162803174,4.23225162,175.35,175.32,2.81517415]
[1762162803375,11.66,175.36,175.33,2.81517415]
[1762162803549,15.89323717,175.35,175.33,2.81517415]
[1762162803749,4.23323717,175.34,175.33,2.81517415]
[1762162803948,15.89323717,175.34,175.33,2.81517415]
[1762162805777,15.89323717,175.34,175.32,8.51896271]
[1762162805970,11.66,175.34,175.32,8.51896271]
[1762162806280,0.71,175.36,175.32,5.70378856]
[1762162806481,15.89614828,175.35,175.32,8.51896271]
[1762162806698,4.23614828,175.34,175.32,8.51896271]
[1762162806977,12.37,175.35,175.32,8.51896271]
[1762162807155,4.94567166,175.34,175.32,8.51896271]
[1762162807481,11.66,175.35,175.32,8.51896271]
[1762162807682,4.23598114,175.34,175.32,8.51896271]
[1762162807879,11.66,175.35,175.3,5.70434831]
[1762162808180,4.23597587,175.34,175.33,2.81517415]
[1762162808478,4.23597587,175.34,175.32,2.81517415]
[1762162808683,12.37,175.35,175.32,8.51894388]
[1762162808883,4.23597924,175.34,175.32,8.51894388]
[1762162809067,12.37,175.35,175.32,8.51894388]
[1762162809268,4.23582536,175.34,175.32,8.51894388]
[1762162809455,12.37,175.35,175.32,8.51894388]
[1762162809660,4.23583314,175.34,175.32,2.81517415]
[1762162809878,0.71,175.34,175.31,2.81517415]
[1762162810376,4.23560117,175.33,175.3,8.51966367]
[1762162810579,4.23527246,175.32,175.28,2.81517415]
[1762162810760,4.23508526,175.31,175.28,2.81517415]
[1762162811076,16.60508526,175.3,175.27,20.592]
[1762162811385,12.37,175.3,175.28,2.81517415]
[1762162811584,12.37,175.3,175.27,20.592]
[1762162811771,11.66,175.3,175.27,23.40717415]
[1762162812079,11.66,175.3,175.28,2.81517415]
[1762162812278,12.37,175.3,175.28,2.81517415]
[1762162812585,12.37,175.3,175.27,26.29742897]
[1762162812757,12.37,175.3,175.28,2.81517415]
[1762162813467,12.37,175.3,175.28,8.52030124]
[1762162813877,12.37,175.3,175.28,2.81517415]
[1762162814088,4.94366571,175.29,175.27,29.1125918]
[1762162814273,4.94366571,175.29,175.26,5.70576651]
[1762162814591,4.94366571,175.29,175.26,8.52094066]
[1762162814881,4.94366571,175.29,175.27,2.81517415]
[1762162815384,4.94366571,175.29,175.26,8.52094066]
[1762162816188,72.44,175.38,175.26,8.52094066]
[1762162816189,11.66,175.31,175.28,2.81517415]
[1762162816381,11.66,175.31,175.3,2.81517415]
[1762162816564,15.89251824,175.31,175.3,2.81517415]
[1762162817090,16.60251824,175.31,175.28,2.81517415]
[1762162817291,4.94251824,175.3,175.26,2.81517415]
[1762162817579,4.23251824,175.29,175.25,2.81517415]
[1762162817769,4.23251824,175.28,175.25,2.81517415]
[1762162817965,4.94251824,175.28,175.25,2.81517415]
[1762162818170,0.71,175.32,175.27,2.81517415]
[1762162818500,15.89203559,175.31,175.27,2.81517415]
[1762162818678,4.23203559,175.3,175.25,8.5211845]
[1762162818873,4.23203559,175.29,175.25,8.5211845]
[1762162819186,15.89203559,175.28,175.25,5.90601035]
[1762162819490,11.66,175.28,175.25,26.29801035]
[1762162819693,11.66,175.28,175.27,2.81517415]
[1762162819865,15.8929437,175.28,175.27,2.81517415]
[1762162820064,15.8929437,175.28,175.27,8.52065711]
[1762162820382,0.71,175.3,175.27,8.52065711]
[1762162820586,15.89342155,175.29,175.28,2.81517415]
[1762162820962,4.23342155,175.29,175.28,2.81517415]
[1762162821162,15.89342155,175.29,175.28,2.81517415]
[1762162821369,16.60342155,175.29,175.28,2.81517415]
[1762162822487,16.60342155,175.29,175.27,8.52065711]
[1762162822790,11.66,175.29,175.28,2.81517415]
[1762162824385,11.66,175.29,175.28,8.52033161]
[1762162824689,12.37,175.29,175.26,8.52092468]
[1762162824887,0.71,175.28,175.27,20.592]
[1762162825193,11.66,175.29,175.27,2.81517415]
[1762162825490,11.66,175.29,175.28,2.81517415]
[1762162825795,11.66,175.29,175.27,2.81517415]
[1762162826189,11.66,175.29,175.28,23.40717415]
[1762162826492,11.66,175.29,175.28,29.11233161]
[1762162827386,11.66,175.29,175.28,26.29715746]
[1762162827592,12.36,175.29,175.26,2.81517415]
[1762162827770,0.7,175.28,175.26,8.52092284]
[1762162829994,11.66,175.29,175.26,8.52092284]
[1762162830293,11.66,175.28,175.27,2.81517415]
[1762162830483,11.66,175.28,175.27,1.8014849]
[1762162830885,0.7,175.32,175.27,1.8014849]
[1762162831086,4.2342026,175.31,175.28,1.8014849]
[1762162831288,11.66,175.32,175.3,1.8014849]
[1762162831476,11.66,175.32,175.31,1.8014849]
[1762162831794,0.7,175.31,175.25,0.7]
[1762162831994,4.2357636,175.3,175.25,2.5014849]
[1762162832304,15.8957636,175.29,175.25,0.7]
[1762162832494,11.66,175.29,175.27,1.8014849]
[1762162832684,0.7,175.32,175.27,1.8014849]
[1762162832998,15.89418948,175.31,175.29,1.8014849]
[1762162833197,4.23463186,175.3,175.28,0.7]
[1762162833404,4.23463186,175.3,175.28,2.5014849]
[1762162833977,4.23463186,175.3,175.28,1.8014849]
[1762162834187,4.23463186,175.3,175.27,7.50685535]
[1762162834401,0.7,175.32,175.27,8.20685535]
[1762162834595,11.66,175.3,175.27,8.20685535]
[1762162834810,11.66,175.3,175.28,2.5014849]
[1762162835799,6.40222957,175.37,175.29,2.5014849]
[1762162836003,15.89926856,175.36,175.31,1.8014849]
[1762162836195,4.23926856,175.35,175.31,1.8014849]
[1762162836396,4.23926856,175.34,175.31,8.20559703]
[1762162836600,4.23926856,175.33,175.32,2.5014849]
[1762162836802,15.89926856,175.33,175.32,1.8014849]
[1762162836994,4.23926856,175.33,175.31,7.50559703]
[1762162837194,4.23996558,175.32,175.31,5.70411213]
[1762162837390,4.23996558,175.32,175.31,7.50559703]
[1762162837803,4.23996558,175.32,175.31,8.20559703]
[1762162838611,11.66,175.33,175.31,8.20559703]
[1762162838909,15.90034108,175.32,175.3,5.70450656]
[1762162839213,4.2401346,175.31,175.3,5.70450656]
[1762162839377,4.2401346,175.31,175.29,28.79829148]
[1762162839583,4.2401346,175.31,175.29,28.09829148]
[1762162840095,4.9401346,175.3,175.28,20.592]
[1762162840403,0.7,175.3,175.28,20.592]
[1762162840604,0.7,175.3,175.27,7.50689553]
[1762162840995,0.7,175.3,175.27,5.70541063]
[1762162841201,4.23997925,175.29,175.25,28.09935164]
[1762162841506,0.7,175.29,175.25,28.09935164]
[1762162841883,0.7,175.29,175.25,26.29786674]
[1762162842207,0.7,175.29,175.25,28.79935164]
[1762162842683,0.7,175.29,175.26,1.8014849]
[1762162843322,4.24122277,175.28,175.26,1.8014849]
[1762162844012,4.24122277,175.28,175.26,7.50724687]
[1762162844198,0.7,175.29,175.26,7.50724687]
[1762162844489,4.24204552,175.28,175.26,7.50724687]
[1762162844697,0.7,175.29,175.26,7.50724687]
[1762162844895,4.24204552,175.28,175.26,7.50724687]
[1762162845089,0.7,175.29,175.26,7.50724687]
[1762162845290,4.24204632,175.28,175.26,7.50724687]
[1762162845491,0.7,175.29,175.26,7.50724687]
[1762162845693,4.24203893,175.28,175.26,6.40576197]
[1762162845915,0.7,175.3,175.26,5.70576197]
[1762162846104,4.24189449,175.29,175.26,5.70576197]
[1762162846299,4.24189449,175.28,175.26,5.70576197]
[1762162846499,0.7,175.3,175.26,5.70576197]
[1762162846697,4.24345492,175.29,175.26,5.70576197]
[1762162847000,4.24345492,175.28,175.26,5.70576197]
[1762162847201,0.7,175.3,175.26,7.50724687]
[1762162847400,4.24477659,175.29,175.26,7.50724687]
[1762162847609,4.24477659,175.28,175.26,7.50724687]
[1762162847793,0.7,175.3,175.26,7.50724687]
[1762162847983,4.24607152,175.29,175.26,7.50724687]
[1762162848195,4.24607152,175.28,175.27,2.5014849]
[1762162848406,15.90666819,175.28,175.27,2.5014849]
[1762162848615,4.24666819,175.28,175.27,2.5014849]
[1762162848801,11.66,175.32,175.27,2.5014849]
[1762162848988,4.24781034,175.31,175.28,0.7]
[1762162849190,11.66,175.32,175.28,0.7]
[1762162849394,4.2482223,175.31,175.28,0.7]
[1762162849597,4.2482223,175.3,175.26,20.67028325]
[1762162849797,4.2482223,175.29,175.28,20.592]
[1762162850615,4.2482223,175.29,175.28,26.29715746]
[1762162850816,4.2482223,175.29,175.28,28.09864236]
[1762162851117,11.66,175.32,175.28,28.09864236]
[1762162851315,4.24905358,175.31,175.29,1.8014849]
[1762162851518,4.24905358,175.3,175.29,1.8014849]
[1762162852214,11.66,175.32,175.29,2.5014849]
[1762162852521,4.24948034,175.31,175.3,0.7]
[1762162852693,4.24948034,175.31,175.3,6.40450656]
[1762162852889,0.7,175.39,175.3,30.45460065]
[1762162853116,11.66,175.35,175.31,0.7]
[1762162853320,4.25012725,175.34,175.31,0.7]
[1762162853513,4.25012725,175.33,175.32,20.592]
[1762162853712,0.7,175.41,175.32,30.2994245]
[1762162853897,15.91071553,175.4,175.38,1.8014849]
[1762162854097,4.25071553,175.39,175.36,20.592]
[1762162854419,4.25071553,175.38,175.35,1.8014849]
[1762162854600,4.25071553,175.37,175.35,1.8014849]
[1762162854807,4.25071553,175.36,175.35,7.50414413]
[1762162855198,4.25071553,175.36,175.35,5.70265923]
[1762162855606,4.25071553,175.36,175.35,7.50414413]
[1762162856731,4.25071553,175.36,175.35,8.18414413]
[1762162856931,25.68,175.42,175.38,20.592]
[1762162857134,15.90695933,175.41,175.39,1.8014849]
[1762162857431,4.24695933,175.4,175.39,1.8014849]
[1762162858016,4.24695933,175.4,175.39,7.50306423]
[1762162858215,4.24695933,175.4,175.39,8.18306423]
[1762162858421,15.90695933,175.4,175.39,8.18306423]
[1762162859123,15.90695933,175.4,175.39,7.50306423]
[1762162859417,15.90695933,175.4,175.39,5.70157933]
[1762162860803,16.56695933,175.4,175.37,26.29399097]
[1762162861001,4.90695933,175.39,175.34,17.12573141]
[1762162861207,4.24695933,175.38,175.3,5.70450656]
[1762162861513,4.24695933,175.37,175.32,1.8014849]
[1762162861730,16.56695933,175.36,175.32,1.8014849]
[1762162861900,4.24695933,175.35,175.34,1.8014849]
[1762162862106,11.66,175.36,175.34,2.4814849]
[1762162862418,0.66,175.41,175.35,2.4814849]
[1762162862618,15.90144983,175.4,175.36,5.70255474]
[1762162862920,4.24144983,175.39,175.36,5.70255474]
[1762162863098,4.24144983,175.39,175.36,6.38255474]
[1762162863512,4.24144983,175.38,175.36,5.70255474]
[1762162864220,4.90144983,175.37,175.34,5.7032052]
[1762162864421,15.90144983,175.36,175.34,5.7032052]
[1762162864725,4.23921228,175.35,175.34,20.592]
[1762162864911,31.38067314,175.42,175.35,0.68]
[1762162865221,16.55970841,175.41,175.37,1.8014849]
[1762162865421,4.23970841,175.4,175.37,1.8014849]
[1762162865726,4.23970841,175.39,175.37,1.8014849]
[1762162865899,4.23970841,175.38,175.37,1.8014849]
[1762162866096,15.89970841,175.38,175.35,0.68]
[1762162866326,11.66,175.38,175.35,2.4814849]
[1762162866928,11.66,175.38,175.36,7.50403964]
[1762162869027,25.68,175.42,175.37,0.68]
[1762162869243,15.89558996,175.41,175.37,2.4814849]
[1762162869533,4.23558996,175.4,175.37,2.4814849]
[1762162870029,4.23558996,175.4,175.37,7.50360713]
[1762162870231,4.23558996,175.39,175.37,7.50360713]
[1762162870434,12.32,175.41,175.37,7.50360713]
[1762162870730,17.12866482,175.48,175.4,3.6029698]
[1762162870927,0.2,175.51,175.44,20.592]
[1762162871132,0.2,175.51,175.43,20.592]
[1762162871133,0.2,175.51,175.47,1.8014849]
[1762162871432,9.66,175.5,175.46,1.8014849]
[1762162871726,0.66,175.49,175.45,20.592]
[1762162872037,0.66,175.49,175.46,5.69930468]
[1762162872219,9.0,175.5,175.47,1.8014849]
[1762162872415,11.74,175.49,175.47,1.8014849]
[1762162872733,12.4,175.49,175.46,5.69930468]
[1762162872935,0.66,175.48,175.45,5.69962798]
[1762162875728,0.66,175.48,175.45,7.50111288]
[1762162875923,11.74,175.49,175.46,1.8014849]
[1762162876135,11.74,175.49,175.46,0.68]
[1762162876325,11.74,175.49,175.47,1.8014849]
[1762162876839,11.74,175.49,175.48,1.8014849]
[1762162877225,11.74,175.49,175.47,2.4814849]
[1762162878239,11.74,175.49,175.48,5.69865511]
[1762162878633,11.74,175.49,175.48,7.50014001]
[1762162879134,0.2,175.51,175.48,22.4267778]
[1762162879327,0.2,175.51,175.5,1.8014849]
[1762162879734,0.2,175.51,175.5,2.4814849]
[1762162880138,0.2,175.51,175.49,1.8014849]
[1762162880737,0.2,175.51,175.5,1.8014849]
[1762162881938,0.2,175.51,175.5,23.0734849]
[1762162882319,0.2,175.51,175.5,28.09149059]
[1762162882721,0.2,175.51,175.5,26.29000569]
[1762162882927,0.2,175.51,175.5,5.69800569]
[1762162883127,0.86,175.51,175.46,24.67548278]
[1762162883533,0.86,175.51,175.46,23.0734849]
[1762162884255,0.66,175.5,175.46,22.3934849]
[1762162884428,0.66,175.5,175.47,5.69894706]
[1762162885241,0.66,175.5,175.45,26.29146467]
[1762162885543,0.66,175.5,175.45,28.77294957]
[1762162886248,0.66,175.5,175.45,28.09294957]
[1762162886432,0.66,175.5,175.45,26.29146467]
[1762162888030,0.66,175.5,175.45,27.00146467]
[1762162889270,0.66,175.5,175.45,26.29146467]
[1762162889631,0.66,175.5,175.45,28.80294957]
[1762162892350,0.66,175.5,175.45,29.81043835]
[1762162892852,0.66,175.5,175.45,27.00146467]
[1762162893026,0.66,175.5,175.45,29.81043835]
[1762162893652,0.66,175.5,175.45,27.00146467]
[1762162894148,0.66,175.5,175.45,29.81043835]
[1762162896355,0.66,175.5,175.45,44.05951216]
[1762162897553,0.66,175.5,175.45,29.81043835]
[1762162901342,0.66,175.5,175.45,27.00146467]
[1762162906041,0.66,175.5,175.45,29.81043835]
[1762162906241,0.66,175.5,175.45,27.00146467]
[1762162906448,6.35822883,175.5,175.44,2.80897368]
[1762162906748,6.35822883,175.5,175.43,20.592]
[1762162906938,0.68,175.49,175.43,20.592]
[1762162907135,11.66,175.48,175.43,5.70020251]
[1762162907334,11.66,175.48,175.43,8.50917619]
[1762162907545,12.34,175.48,175.44,0.71]
[1762162907743,0.68,175.47,175.44,0.71]
[1762162907961,0.68,175.47,175.43,8.50917619]
[1762162908260,0.68,175.47,175.43,9.21917619]
[1762162908564,0.68,175.47,175.43,0.71]
[1762162908941,0.68,175.47,175.43,6.41015276]
[1762162909853,11.66,175.48,175.43,22.75982472]
[1762162910042,0.2,175.51,175.47,2.80897368]
[1762162910242,12.34,175.5,175.46,2.80897368]
[1762162910646,12.34,175.5,175.47,5.69897988]
[1762162910848,11.66,175.5,175.47,6.40897988]
[1762162912260,0.68,175.49,175.47,5.69897988]
[1762162912450,11.66,175.5,175.47,5.69897988]
[1762162912659,12.34,175.5,175.47,5.69897988]
[1762162913855,12.34,175.5,175.46,5.69930468]
[1762162914057,12.34,175.5,175.46,6.40930468]
[1762162915868,12.34,175.5,175.46,5.69930468]
[1762162916055,12.34,175.5,175.46,6.40930468]
[1762162916470,0.68,175.49,175.46,5.69930468]
[1762162919667,0.68,175.49,175.45,5.69962952]
[1762162919872,0.68,175.49,175.45,6.36962952]
[1762162920676,11.66,175.5,175.46,0.67]
[1762162920879,11.66,175.49,175.46,3.47897368]
[1762162921079,11.66,175.49,175.47,2.80897368]
[1762162921251,11.66,175.49,175.47,0.67]
[1762162921567,11.66,175.49,175.46,2.80897368]
[1762162921784,11.66,175.49,175.47,6.36877276]
[1762162922163,12.32,175.49,175.46,5.69928135]
[1762162922954,12.32,175.49,175.46,6.36928135]
[1762162923870,11.66,175.49,175.45,5.69958668]
[1762162924075,0.66,175.48,175.44,5.6998813]
[1762162924290,0.66,175.48,175.44,6.3698813]
[1762162924576,0.66,175.48,175.43,20.592]
[1762162924746,0.66,175.48,175.43,21.262]
[1762162925151,0.66,175.48,175.41,5.70064405]
[1762162925458,0.66,175.48,175.39,0.67]
[1762162925664,0.66,175.48,175.39,20.592]
[1762162925869,19.94642958,175.47,175.37,0.67]
[1762162926080,19.94642958,175.47,175.36,2.80897368]
[1762162926257,0.66,175.46,175.38,2.80897368]
[1762162926675,11.66,175.45,175.39,0.67]
[1762162927173,0.66,175.44,175.37,5.70215037]
[1762162928472,5.70027931,175.43,175.37,5.70215037]
[1762162928675,5.70027931,175.43,175.36,3.47897368]
[1762162928676,5.70027931,175.43,175.36,9.18148247]
[1762162928987,0.66,175.42,175.36,29.77348247]
[1762162929161,11.66,175.41,175.36,29.77348247]
[1762162929479,11.66,175.41,175.36,26.96450879]
[1762162929676,12.32,175.41,175.37,0.67]
[1762162929983,12.32,175.41,175.37,6.37212296]
[1762162930298,0.66,175.4,175.36,20.592]
[1762162930463,0.66,175.4,175.34,6.37314628]
[1762162930872,0.66,175.4,175.34,9.18211996]
[1762162931085,0.66,175.4,175.34,6.37314628]
[1762162931283,0.66,175.4,175.34,9.18211996]
[1762162931594,6.36128522,175.4,175.34,21.262]
[1762162931814,6.36128522,175.4,175.34,23.40097368]
[1762162931982,6.36128522,175.4,175.35,0.67]
[1762162932300,0.66,175.42,175.37,2.80897368]
[1762162932465,11.66,175.41,175.39,2.80897368]
[1762162932664,0.66,175.44,175.4,2.80897368]
[1762162932887,0.66,175.47,175.41,0.67]
[1762162933065,11.66,175.46,175.41,0.67]
[1762162933464,12.32,175.46,175.42,5.70060426]
[1762162933666,0.2,175.51,175.43,0.67]
[1762162933972,11.66,175.5,175.46,2.80897368]
[1762162934176,11.66,175.5,175.46,3.47897368]
[1762162934489,12.32,175.5,175.46,3.47897368]
[1762162934798,11.66,175.5,175.47,3.47897368]
[1762162935400,11.66,175.5,175.48,0.67]
[1762162935694,11.66,175.5,175.48,6.36853617]
[1762162936069,0.66,175.49,175.47,5.69893205]
[1762162936376,0.66,175.49,175.45,5.69957782]
[1762162937471,0.66,175.49,175.44,5.6999544]
[1762162937892,0.66,175.49,175.44,6.3699544]
[1762162938405,6.3584926,175.49,175.43,26.29223109]
[1762162938612,6.3584926,175.49,175.42,0.67]
[1762162938793,0.66,175.48,175.42,24.07097368]
[1762162939512,0.66,175.48,175.42,29.77149406]
[1762162940180,6.35879081,175.48,175.42,26.96252038]
[1762162940382,6.35879081,175.48,175.42,29.77149406]
[1762162940597,0.66,175.47,175.42,29.77149406]
[1762162940909,0.66,175.47,175.42,26.29252038]
[1762162941299,55.96,175.47,175.42,5.70052038]
[1762162941510,5.69930468,175.46,175.39,5.70157933]
[1762162941687,73.31930468,175.46,175.39,26.29357933]
[1762162942016,0.66,175.45,175.39,26.29357933]
[1762162942896,0.66,175.45,175.39,26.29330791]
[1762162943102,0.66,175.45,175.39,29.77228159]
[1762162943708,66.96,175.46,175.4,3.47897368]
[1762162943878,67.62,175.46,175.4,3.47897368]
[1762162945299,67.62,175.46,175.41,6.37092925]
[1762162945596,55.96,175.46,175.41,6.37092925]
[1762162945807,12.32,175.45,175.41,6.37092925]
[1762162945999,12.32,175.45,175.39,5.70130339]
[1762162946181,0.66,175.44,175.39,5.70130339]
[1762162946380,0.66,175.44,175.39,9.22027707]
[1762162946580,0.66,175.44,175.4,0.7]
[1762162947197,11.66,175.45,175.41,5.70092925]
[1762162947401,55.98,175.46,175.41,5.70092925]
[1762162947580,11.66,175.45,175.41,6.40092925]
[1762162947784,12.34,175.45,175.41,6.40092925]
[1762162948003,11.66,175.45,175.42,0.7]
[1762162948680,12.34,175.45,175.41,5.70092925]
[1762162948875,0.68,175.45,175.41,6.40092925]
[1762162949081,11.66,175.44,175.41,6.40092925]
[1762162949500,11.66,175.44,175.41,5.70092925]
[1762162949698,12.34,175.44,175.41,5.70092925]
[1762162949906,0.68,175.43,175.41,5.70092925]
[1762162950205,12.34,175.44,175.41,5.70092925]
[1762162950508,12.34,175.44,175.4,5.70125427]
[1762162950705,12.34,175.44,175.4,6.40125427]
[1762162951205,11.66,175.44,175.41,0.7]
[1762162951413,12.34,175.44,175.4,6.40125427]
[1762162951724,0.68,175.43,175.38,5.70159974]
[1762162952500,0.68,175.43,175.38,6.40159974]
[1762162954500,61.680316,175.43,175.36,5.70224044]
[1762162954807,55.3,175.42,175.36,5.70224044]
[1762162954992,66.96,175.41,175.36,5.70224044]
[1762162955198,67.64,175.41,175.36,5.70224044]
[1762162955400,0.68,175.4,175.36,5.70224044]
[1762162956011,0.68,175.4,175.35,5.70287995]
[1762162956193,0.68,175.4,175.35,6.40287995]
[1762162956901,0.68,175.4,175.36,0.7]
[1762162957918,66.96,175.41,175.38,1.79959725]
[1762162958090,55.3,175.45,175.4,1.79959725]
[1762162958290,11.66,175.44,175.4,1.79959725]
[1762162958508,11.66,175.44,175.4,0.7]
[1762162958699,12.34,175.44,175.4,0.7]
[1762162958895,12.34,175.44,175.39,7.50117658]
[1762162959105,12.34,175.44,175.39,8.20117658]
[1762162959409,11.66,175.44,175.39,7.50117658]
[1762162959608,0.68,175.43,175.39,6.40157933]
[1762162959794,0.68,175.43,175.39,5.70157933]
[1762162961216,0.68,175.43,175.38,5.70190443]
[1762162961390,0.68,175.43,175.38,6.40190443]
[1762162964513,6.38050824,175.43,175.37,7.5018192]
[1762162964717,6.38050824,175.43,175.37,5.70222195]
[1762162965014,0.68,175.42,175.37,5.70222195]
[1762162965216,11.66,175.41,175.37,5.70222195]
[1762162965515,11.66,175.41,175.37,6.40222195]
[1762162965697,12.34,175.41,175.37,6.40222195]
[1762162967217,12.34,175.41,175.38,2.49959725]
[1762162967218,11.66,175.41,175.38,2.49959725]
[1762162967511,55.98,175.44,175.39,5.70157933]
[1762162967705,11.66,175.43,175.39,5.70157933]
[1762162967895,12.34,175.43,175.39,6.40157933]
[1762162969412,0.68,175.42,175.39,0.7]
[1762162969618,12.34,175.43,175.39,0.7]
[1762162970615,12.34,175.43,175.39,6.40139055]
[1762162971112,11.66,175.43,175.39,5.70139055]
[1762162971318,0.68,175.42,175.39,5.70139055]
[1762162972421,11.66,175.43,175.4,0.7]
[1762162972604,11.66,175.43,175.41,5.70092925]
[1762162973019,11.66,175.43,175.4,6.40123764]
[1762162973320,12.34,175.43,175.4,6.40123764]
[1762162974016,0.68,175.42,175.4,5.70123764]
[1762162974820,0.68,175.42,175.39,5.70157933]
[1762162975506,11.66,175.43,175.39,6.40157933]
[1762162975707,12.34,175.43,175.39,6.40157933]
[1762162978824,0.71,175.42,175.39,5.70157933]
[1762162979210,0.71,175.42,175.39,6.42157933]
[1762162979837,0.71,175.46,175.4,0.72]
[1762162980007,0.71,175.46,175.41,1.79959725]
[1762162980205,11.66,175.45,175.4,21.312]
[1762162980405,0.2,175.51,175.44,1.79959725]
[1762162980719,11.66,175.5,175.44,21.16199544]
[1762162980917,11.66,175.5,175.49,1.79959725]
[1762162981116,11.66,175.5,175.48,22.39159725]
[1762162981328,11.66,175.5,175.48,23.11159725]
[1762162981625,11.66,175.5,175.48,22.39159725]
[1762162981807,11.66,175.5,175.48,2.51959725]
[1762162982004,11.66,175.5,175.47,20.592]
[1762162982217,11.66,175.5,175.47,26.29093629]
[1762162982424,12.37,175.5,175.47,5.69893629]
[1762162982612,11.66,175.5,175.47,6.41893629]
[1762162982803,12.37,175.5,175.47,5.69893629]
[1762162983016,0.71,175.49,175.45,0.72]